[Event "Serbian League 2024"]
[Site "Bajina Basta"]
[Date "2024.10.02"]
[Round "6.1"]
[White "Nadj Hedjesi, Balind"]
[Black "Puranik, Abhimanyu"]
[Result "0-1"]
[ECO "A13"]
[WhiteElo "2212"]
[BlackElo "2639"]
[Annotator "TA"]
[PlyCount "84"]
[EventDate "2024.09.26"]
[EventType "team-tourn"]
[EventCountry "SRB"]
[SourceTitle "playchess.com"]
[Source "ChessBase"]
[SourceQuality "1"]
[TimeControl "40/5400+30:1800+30"]

{[%evp 10,84,8,15,17,3,0,0,-4,-35,-27,-30,-27,-49,-48,-37,-31,-59,-67,-65,-80,-68,-70,-64,-46,-91,-62,-68,-62,-77,-63,-54,-66,-55,-47,-258,-76,-83,-85,-451,-462,-454,-406,-547,-568,-585,-625,-641,-630,-610,-632,-665,-668,-655,-587,-842,-799,-819,-813,-801,-755,-835,-751,-2355,-839,-7799,-5708,-6518,-6394,-29962,-29961,-29959,-29958,-29976,-29977,-29977,-29978]} 1. Nf3 {[%emt 0:07:57]} d5 {[%emt 0:00:44]} 2. g3 {[%emt 0:00:48]} Nf6 {[%emt 0:01:01]} 3. c4 {[%emt 0:00:21]} e6 {[%emt 0:02:12]} 4. Bg2 {[%emt 0:00:15]} d4 {[%emt 0:01:06]} 5. O-O {[%emt 0:02:01]} c5 {[%emt 0:00:33]} 6. e3 {[%emt 0:01:45][%cal Ob2b4]} Nc6 {[%emt 0:00:11]} 7. exd4 {[%emt 0:00:34]} cxd4 {[%emt 0:00:04]} 8. a3 {[%emt 0:01:53]} a5 {[%emt 0:00:15] The position is equal.} 9. b3 {[%emt 0:00:03]} Bd6 {[%emt 0:12:36]} 10. d3 {[%emt 0:02:03]} h6 {[%emt 0:04:09]} 11. Ra2 {[%emt 0:04:03]} O-O {[%emt 0:00:23]} 12. Re2 {[%emt 0:01:17]} Re8 {[%emt 0:06:08]} 13. Qc2 {[%emt 0:03:03]} e5 {[%emt 0:04:32]} 14. Rfe1 {[%emt 0:05:05]} Bf5 {[%emt 0:06:26]} 15. Nbd2 {[%emt 0:03:04]} Qd7 {[%emt 0:07:12] Black is much more active.} 16. Nh4 {[%emt 0:07:59]} Bh7 {[%emt 0:01:09]} (16... Bg4 $5) 17. Ne4 {[%emt 0:04:04]} Be7 {[%emt 0:05:27]} 18. Nxf6+ {[%emt 0:12:34]} Bxf6 {[%emt 0:00:11]} 19. Nf3 {[%emt 0:00:01] [#]} e4 $1 {[%emt 0:11:43]} 20. Nd2 {[%emt 0:09:17]} exd3 {[%emt 0:04:38]} 21. Rxe8+ {[%emt 0:02:16]} Rxe8 {[%emt 0:00:02]} 22. Rxe8+ {[%emt 0:01:15]} Qxe8 {[%emt 0:00:02]} 23. Qd1 {[%emt 0:00:15] Repels Qe1+} Bf5 $36 {[%emt 0:05:52][%mdl 2048] White is under strong pressure.} 24. Ne4 $2 {[%emt 0:17:08][%mdl 8192]} Bxe4 $19 {[%emt 0:01:59]} 25. Qe1 {[%emt 0:01:26]} Bg5 {[%emt 0:00:06]} ({Stronger than} 25... d2 26. Bxd2 Bg5 27. Bxg5 $11) 26. Bxg5 {[%emt 0:02:09]} hxg5 {[%emt 0:02:12]} 27. Qxe4 {[%emt 0:05:01]} Qxe4 {[%emt 0:00:10]} 28. Bxe4 {[%emt 0:00:01][%cal Og1f1][%mdl 4096] Endgame. KB-KN} d2 {[%emt 0:00:06]} 29. Bc2 {[%emt 0:01:56]} g4 {[%emt 0:04:08]} 30. Kf1 {[%emt 0:02:49] [#]} d3 {[%emt 0:00:04][%mdl 512]} 31. Bd1 {[%emt 0:00:03]} Ne5 {[%emt 0:00:03] ...f5 is the strong threat.} 32. f4 {[%emt 0:00:49]} gxf3 {[%emt 0:00:05] ( -> ...Ng4)} 33. Kf2 {[%emt 0:02:08]} Kf8 {[%emt 0:00:24]} 34. c5 {[%emt 0:01:27]} Ke7 {[%emt 0:00:15] Hoping for ...Kd7.} 35. Ke3 {[%emt 0:00:18]} Kd8 {[%emt 0:02:50]} 36. h3 {[%emt 0:00:42]} Kc7 {[%emt 0:00:12]} (36... Kd7 $142 37. b4 Nc4+ 38. Kxd3 f2 (38... Nxa3 39. Bxf3 axb4 40. Kxd2 $17)) 37. b4 {[%emt 0:00:02]} axb4 {[%emt 0:00:16]} 38. axb4 {[%emt 0:00:02]} Nc4+ {[%emt 0:01:39]} 39. Kxd3 {[%emt 0:01:28]} f2 {[%emt 0:00:02] Black mates.} 40. Ke2 {[%emt 0:00:29]} Nb2 {[%emt 0:00:15]} 41. Bb3 {[%emt 0:30:37] [#]} d1=Q+ $1 {[%emt 0:30:11][%mdl 512]} 42. Bxd1 {[%emt 0:00:03]} Nxd1 {[%emt 0:00:03] Weighted Error Value: White=0.93/Black=0.29 (precise) .  Loses game:     	White=1     	---        Missed win:     	---       	Black=1      Inaccurate:     	White=5     	Black=1      OK:         	White=11    	Black=7      Best:        	White=2     	Black=2} 0-1

[Event "Serbian League 2024"]
[Site "Bajina Basta"]
[Date "2024.10.02"]
[Round "6.2"]
[White "Gagunashvili, Merab"]
[Black "Yilmaz, Baver"]
[Result "1-0"]
[ECO "D97"]
[WhiteElo "2550"]
[BlackElo "2202"]
[Annotator "TA"]
[PlyCount "128"]
[EventDate "2024.09.26"]
[EventType "team-tourn"]
[EventCountry "SRB"]
[SourceTitle "playchess.com"]
[Source "ChessBase"]
[SourceQuality "1"]
[TimeControl "40/5400+30:1800+30"]

{[%evp 38,128,28,15,49,38,90,81,83,70,118,47,61,55,28,47,245,227,252,239,250,249,258,179,250,229,345,342,357,368,413,327,424,420,433,422,411,425,434,411,431,422,427,403,449,439,461,449,445,440,894,885,1429,1324,29957,29958,29956,5842,824,806,1967,1116,29975,29976,6498,6498,5389,2871,5005,2075,29967,29968,29962,10557,29965,29959,29948,12839,6947,6943,29977,29978,29978,29979,29979,29980,29980,29981,29981,29982,29981,29982,29991]} 1. d4 {[%emt 0:00:03]} Nf6 {[%emt 0:03:46]} 2. c4 {[%emt 0:00:06]} g6 {[%emt 0:00:05]} 3. Nc3 {[%emt 1:31:51]} d5 {[%emt 0:00:07]} 4. Nf3 {[%emt 0:00:00]} Bg7 {[%emt 0:00:17]} 5. Qb3 {[%emt 0:00:00]} dxc4 {[%emt 0:00:57]} 6. Qxc4 {[%emt 0:00:00]} O-O {[%emt 0:00:30]} 7. e4 {[%emt 0:00:00]} a6 {[%emt 0:01:03]} 8. e5 {[%emt 0:00:00]} b5 {[%emt 0:00:46]} 9. Qb3 {[%emt 0:00:00]} Nfd7 {[%emt 0:00:06]} 10. e6 {[%emt 0:00:00]} fxe6 {[%emt 0:00:39]} 11. Ng5 {[%emt 0:00:00]} Nf6 {[%emt 0:07:18]} 12. Nxe6 {[%emt 0:00:00]} Bxe6 {[%emt 0:00:11]} 13. Qxe6+ {[%emt 0:00:00]} Kh8 {[%emt 0:00:12]} 14. Be3 {[%emt 0:00:00]} Qd7 {[%emt 0:04:14]} 15. Qxd7 {[%emt 0:00:00]} Nbxd7 {[%emt 0:00:07]} 16. Be2 {[%emt 0:00:00]} Nb6 {[%emt 0:05:49]} 17. Bf3 {[%emt 0:00:00]} Rad8 {[%emt 0:02:05]} 18. O-O-O {[%emt 0:00:00]} b4 {[%emt 0:05:58]} 19. Ne2 {[%emt 0:00:00]} Nfd5 {[%emt 0:02:52]} 20. Bg5 {[%emt 0:00:00]} Rd6 {[%emt 0:03:21]} 21. Kb1 {[%emt 0:00:00]} e5 {[%emt 0:06:39]} ({Black should try} 21... a5 $14) 22. dxe5 $16 {[%emt 0:00:00]} Bxe5 {[%emt 0:00:19]} 23. Ng3 {[%emt 0:00:00]} Nf6 {[%emt 0:04:10]} (23... Bf4 $14) 24. Rxd6 {[%emt 0:00:00]} (24. Rc1 $16) 24... cxd6 {[%emt 0:00:16]} 25. Rc1 {[%emt 0:00:00]} Na4 {[%emt 0:02:37]} 26. Rc2 {[%emt 0:00:00]} Rb8 $2 {[%emt 0:02:17] [#]} (26... Nxb2 $2 27. Rxb2 Bxb2 28. Kxb2 $18) (26... Nc5 $14) 27. Bc6 $1 $18 {[%emt 0:00:00]} Nxb2 {[%emt 0:07:03]} 28. f4 {[%emt 0:00:00]} Bc3 {[%emt 0:02:11]} (28... Bd4 $2 29. Ne2 (29. Rxb2 Bxb2 30. Kxb2 Kg7 $18) 29... Nd1 30. Nxd4 $18) 29. Rxc3 {[%emt 0:00:00]} (29. Rxb2 $6 Bxb2 30. Kxb2 Kg7) 29... bxc3 {[%emt 0:00:04]} 30. Bxf6+ {[%emt 0:00:00]} Kg8 {[%emt 0:00:03]} 31. Kc2 {[%emt 0:00:00]} (31. Bxc3 Nd1+ 32. Kc2 Nxc3 $19) (31. Bd5+ Kf8) 31... Rc8 {[%emt 0:02:03]} (31... Kf8 {was called for.} 32. Ne2 (32. Bxc3 Nd1 $18) (32. Kxc3 Rc8 $16) 32... Rb6) 32. Bb7 $18 {[%emt 0:00:00]} (32. Kxc3 Na4+ 33. Kb4 Rxc6 34. Kxa4 Rc2 $19) (32. Bxc3 Rxc6 33. Kxb2 Rc4 $11) (32. Bd5+ Kf8 33. Ne2 (33. Bxc3 Na4 $18) 33... Na4 34. Nxc3 Rc5) 32... Rc7 {[%emt 0:02:27]} 33. Bxa6 {[%emt 0:00:00]} (33. Bd5+ Kf8 34. Ne2 (34. Bxc3 Nd1 $18) 34... Na4 $18) 33... d5 {[%emt 0:03:05]} 34. Ne2 {[%emt 0:00:00]} (34. Bxc3 Na4 35. Ne2 Nxc3 (35... d4 36. Nxd4 Rxc3+ 37. Kd2 $15) 36. Nxc3 d4 $19) 34... Nc4 {[%emt 0:03:31]} 35. Bxc4 {[%emt 0:00:00]} (35. Nxc3 Ne3+ 36. Kd3 Ra7) (35. Kxc3 Ra7 $18) 35... Rxc4 {[%emt 0:00:13]} 36. g3 {[%emt 0:00:00]} ({Stronger than} 36. Nxc3 d4 (36... Rxf4 $2 {is the wrong capture.} 37. Be5 $18) 37. Bxd4 Rxd4 $15) (36. Bxc3 Re4 $18) 36... Kf7 {[%emt 0:01:43]} 37. Bxc3 {[%emt 0:00:00]} h5 {[%emt 0:01:04]} 38. Nd4 {[%emt 0:00:00]} Ke7 {[%emt 0:02:45]} 39. Kd3 {[%emt 0:00:00]} Ra4 {[%emt 0:00:25]} 40. Bb4+ {[%emt 0:00:00]} Kf6 {[%emt 0:00:10]} 41. a3 {[%emt 0:28:51]} g5 {[%emt 0:30:34]} 42. Ne2 {[%emt 0:01:20]} Ra8 {[%emt 0:00:55]} 43. h3 {[%emt 0:08:04]} g4 {[%emt 0:02:04]} (43... gxf4 $142 44. Nxf4 Kg5 45. Be7+ (45. Nxd5 Kf5 $18) 45... Kh6 46. Nxd5 Kg6 47. Nf4+ Kf7) 44. h4 $18 {[%emt 0:00:16]} Ra6 {[%emt 0:00:33]} 45. Nc3 {[%emt 0:00:40]} Ke6 {[%emt 0:00:08]} 46. Nb5 {[%emt 0:00:49]} Kd7 {[%emt 0:00:48]} 47. Nd4 {[%emt 0:00:12]} (47. Kd4 $142 Rb6 48. Nc3 Ke6 49. Nxd5 Rb8 50. Ke4 Kf7 51. Kf5 Rb5 52. Ke4) 47... Ra8 {[%emt 0:00:23]} 48. f5 {[%emt 0:00:12]} Ra6 {[%emt 0:00:04]} 49. Ke3 {[%emt 0:00:08]} Ra8 {[%emt 0:00:27]} 50. f6 {[%emt 0:00:57]} Ke8 {[%emt 0:00:05]} 51. Kf4 {[%emt 0:00:48]} Kf7 {[%emt 0:00:04]} 52. Be7 {[%emt 0:00:15]} Rc8 {[%emt 0:00:18]} 53. Ke5 {[%emt 0:04:38]} Rc1 {[%emt 0:00:53]} 54. Nf5 {[%emt 0:00:16]} Re1+ {[%emt 0:00:20]} 55. Kxd5 {[%emt 0:00:19]} Rd1+ {[%emt 0:00:35]} 56. Ke5 {[%emt 0:00:10]} Re1+ {[%emt 0:00:15]} 57. Kf4 {[%emt 0:00:08]} Rf1+ {[%emt 0:00:15]} 58. Kg5 {[%emt 0:00:46]} Rf3 {[%emt 0:00:06]} 59. Bd6 {[%emt 0:00:24]} Ke6 {[%emt 0:00:18]} 60. Bf4 {[%emt 0:00:44]} Rxa3 {[%emt 0:00:22]} 61. Nh6 {[%emt 0:02:06]} Ra5+ {[%emt 0:00:26]} 62. Kg6 {[%emt 0:00:05]} Ra8 {[%emt 0:00:07]} 63. f7 {[%emt 0:00:12]} Rf8 {[%emt 0:00:10]} 64. Kg7 {[%emt 0:00:07]} Kd5 {[%emt 0:00:39]} 1-0

[Event "Serbian League 2024"]
[Site "Bajina Basta"]
[Date "2024.10.02"]
[Round "6.3"]
[White "Szalai, Kornel"]
[Black "Draskovic, Luka"]
[Result "1/2-1/2"]
[ECO "E11"]
[WhiteElo "2388"]
[BlackElo "2497"]
[Annotator "TA"]
[PlyCount "92"]
[EventDate "2024.09.26"]
[EventType "team-tourn"]
[EventCountry "SRB"]
[SourceTitle "playchess.com"]
[Source "ChessBase"]
[SourceQuality "1"]
[TimeControl "40/5400+30:1800+30"]

{[%evp 21,92,-4,3,-14,0,0,0,0,0,0,0,0,0,0,4,-50,-53,-47,-54,-41,-25,-33,58,27,43,31,33,0,29,24,29,18,15,10,16,17,17,19,9,7,116,26,103,35,41,22,38,6,119,112,167,142,250,247,214,109,74,0,0,0,0,0,0,0,0,0,0,0,0,0,0,0,0]} 1. Nf3 {[%emt 0:01:08]} d5 {[%emt 0:00:33]} 2. d4 {[%emt 0:00:36]} Nf6 {[%emt 0:01:22]} 3. c4 {[%emt 0:01:19]} e6 {[%emt 0:00:25]} 4. g3 {[%emt 0:06:04]} Bb4+ {[%emt 0:07:39]} 5. Bd2 {[%emt 0:00:31]} Be7 {[%emt 0:00:12]} 6. Bg2 {[%emt 0:01:34]} O-O {[%emt 0:00:07]} 7. Qc2 {[%emt 0:01:38]} c6 {[%emt 0:01:52]} 8. O-O {[%emt 0:00:24]} Nbd7 {[%emt 0:01:21]} 9. b3 {[%emt 0:14:28]} b6 {[%emt 0:01:09]} 10. Bc3 {[%emt 0:02:16]} Bb7 {[%emt 0:15:20]} 11. Nbd2 {[%emt 0:08:03]} c5 {[%emt 0:00:39]} 12. Rac1 {[%emt 0:06:14]} Rc8 {[%emt 0:01:45]} 13. Qb2 {[%emt 0:01:22]} dxc4 {[%emt 0:05:23]} 14. dxc5 {[%emt 0:01:08]} Bxc5 {[%emt 0:19:44]} 15. Nxc4 {[%emt 0:01:32]} b5 {[%emt 0:00:54]} 16. Na5 {[%emt 0:06:56]} Bd5 {[%emt 0:03:04]} 17. b4 {[%emt 0:03:41]} Bb6 {[%emt 0:00:55]} 18. Rfd1 {[%emt 0:04:43] [#]} (18. Nh4 $11) 18... Rxc3 $1 $15 {[%emt 0:06:09]} 19. Rxc3 {[%emt 0:03:33] Threatens to win with Nc6.} (19. Qxc3 $2 Ne4 20. Qa1 Nxf2 (20... Bxf2+ 21. Kf1 $17) 21. Rxd5 exd5 $19) 19... Ne4 $1 {[%emt 0:00:35][%cal Oe4f2]} 20. e3 {[%emt 0:01:50]} Nxc3 {[%emt 0:01:34]} 21. Qxc3 {[%emt 0:00:05]} Qf6 {[%emt 0:11:36]} (21... Bxa2 22. Ne5 Bd5 23. Nxd7 Qxd7 24. e4 Bxa5 (24... Rc8 $2 25. Qb2 $18) 25. bxa5 $11) (21... Qa8 $15) 22. Nd4 $36 {[%emt 0:09:47][%mdl 2048] White fights for an advantage.} Bxg2 {[%emt 0:04:09]} 23. Kxg2 {[%emt 0:00:15]} Ne5 {[%emt 0:00:32]} 24. f4 {[%emt 0:03:03]} Ng4 {[%emt 0:01:10] aiming for ...e5.} 25. h3 {[%emt 0:02:39]} e5 {[%emt 0:00:49]} 26. hxg4 {[%emt 0:00:48]} exd4 {[%emt 0:00:03]} 27. exd4 {[%emt 0:00:10]} Qe6 {[%emt 0:00:17][%csl LRa2,LRg4]} 28. Rd2 {[%emt 0:03:36] Repels Qe2+} Qxg4 {[%emt 0:05:16]} 29. Nc6 {[%emt 0:00:22][%cal Ba5c6,Bc6e5,Be5f3][%mdl 32] next d5 is good for White.} Re8 {[%emt 0:01:35]} 30. Ne5 {[%emt 0:04:45]} Qe6 {[%emt 0:02:09]} (30... Qf5 $1 $11) 31. Qc6 {[%emt 0:02:27]} (31. d5 $1 $16 {[%cal Rd5e6]} Qd6 32. Qc6 Qxc6 33. Nxc6 (33. dxc6 Rc8 $16)) 31... Rd8 {[%emt 0:00:06] [#]} (31... Qxc6+ $11 32. Nxc6 Kf8) 32. Qxb5 {[%emt 0:09:33] White is more active.} (32. d5 $1 $16 {[%cal Rd5e6]} Qxc6 33. Nxc6) 32... Rd5 $14 {[%emt 0:02:13]} (32... Rxd4 $2 33. Rxd4 Qxa2+ 34. Kf3 $18) 33. Qa6 {[%emt 0:00:00]} f6 {[%emt 0:01:32]} 34. Nf3 {[%emt 0:01:00]} h5 {[%emt 0:01:03]} (34... g5 $1 $11) 35. a4 $16 {[%emt 0:00:00][%cal Ba2a4,Ba4a5][%mdl 32] Black must now prevent a5.} Qd7 {[%emt 0:01:11]} (35... Qf7 $16 36. Rc2 h4) 36. Rc2 $18 {[%emt 0:00:00]} Kf7 {[%emt 0:01:07]} (36... Bd8 $16 {might work better.} 37. Rc8 Rd6 38. Qc4+ Qf7) 37. a5 {[%emt 0:00:00]} Bd8 {[%emt 0:00:10]} (37... Bxd4 $2 38. Qc4 $18) 38. Rc5 {[%emt 0:00:00]} (38. Rc6 $18) 38... Be7 $16 {[%emt 0:00:29] [#]} 39. Rxd5 {[%emt 0:01:09]} ({White should try} 39. Rc6 $1 $16 {Hoping for Qc4.} Rd6 (39... Bxb4 $2 {loses.} 40. Qc4 $18) 40. Rxd6 Bxd6 41. b5) 39... Qxd5 $11 {[%emt 0:00:02] The position is equal.} 40. Qxa7 $16 {[%emt 0:00:09][%mdl 4096] Endgame. KQB-KQN} Qa2+ {[%emt 0:01:42]} 41. Kf1 {[%emt 0:10:27]} Qc4+ {[%emt 0:02:49]} 42. Ke1 {[%emt 0:04:16]} Qc1+ {[%emt 0:00:49]} 43. Ke2 {[%emt 0:00:36] Qb7 would now be deadly.} Qc4+ {[%emt 0:00:07]} 44. Ke3 {[%emt 0:01:54] And now Nd2 would win.} Qc3+ {[%emt 0:01:07]} 45. Ke2 {[%emt 0:00:49]} Qc4+ {[%emt 0:00:05]} 46. Ke3 {[%emt 0:00:03] Strongly threatening Qb7.} Qc3+ {[%emt 0:00:04] Weighted Error Value: White=0.17 (very precise) /Black=0.21 (precise) .  Mistake:       	White=5     	Black=6      Inaccurate:     	White=2     	Black=1      OK:         	White=11    	Black=18     Best:        	White=3     	Black=1      Strong:       	---       	Black=1      Brilliant:      	---       	Black=1} 1/2-1/2

[Event "Serbian League 2024"]
[Site "Bajina Basta"]
[Date "2024.10.02"]
[Round "6.4"]
[White "Bryakin, Mikhail"]
[Black "Farkas, Tibor"]
[Result "1/2-1/2"]
[ECO "D00"]
[WhiteElo "2438"]
[BlackElo "2209"]
[Annotator "TA"]
[PlyCount "143"]
[EventDate "2024.09.26"]
[EventType "team-tourn"]
[EventCountry "SRB"]
[SourceTitle "playchess.com"]
[Source "ChessBase"]
[SourceQuality "1"]
[TimeControl "40/5400+30:1800+30"]

{[%evp 42,142,26,31,50,45,31,0,101,0,25,27,13,8,37,0,197,195,252,250,257,252,294,292,285,277,280,295,276,287,327,252,280,261,279,270,320,285,277,279,286,266,293,283,282,0,0,0,0,0,0,0,0,-444,0,0,0,0,0,0,0,0,0,0,0,0,0,0,0,0,0,0,0,0,0,0,0,0,0,0,0,0,0,0,0,0,0,0,0,0,0,0,0,0,0,0,0,0,0,0,0,0,0]} 1. d4 {[%emt 0:00:03]} Nf6 {[%emt 0:01:36]} 2. Nc3 {[%emt 0:00:05]} d5 {[%emt 0:01:19]} 3. Bf4 {[%emt 0:00:04]} a6 {[%emt 0:00:55]} 4. e3 {[%emt 0:00:03]} e6 {[%emt 0:01:10]} 5. g4 {[%emt 0:00:04]} Bd6 {[%emt 0:01:41]} 6. Bg3 {[%emt 0:04:25] D00: 1 d4 d5: Unusual lines.} c5 {[%emt 0:01:51]} 7. g5 {[%emt 0:01:32]} Ng8 {[%emt 0:00:37]} 8. Qg4 $146 {[%emt 0:05:46]} ({Predecessor:} 8. Nf3 Nc6 9. dxc5 Bxc5 10. Bd3 Nge7 11. h4 Bd6 12. Rg1 e5 13. e4 d4 14. Nb1 {0-1 Murzin,V (2627)-Caruana,F (2794) Wch Blitz Samarkand 2023 (14)}) 8... Ne7 {[%emt 0:02:43]} 9. dxc5 {[%emt 0:02:03]} Bxc5 {[%emt 0:02:11]} 10. O-O-O {[%emt 0:00:18]} Nbc6 {[%emt 0:01:02]} 11. Ne4 {[%emt 0:02:52]} e5 {[%emt 0:04:52]} 12. Qe2 {[%emt 0:14:15]} Qb6 {[%emt 0:01:04]} 13. Nxc5 {[%emt 0:03:36]} Qxc5 {[%emt 0:00:14]} 14. h4 {[%emt 0:05:59]} O-O {[%emt 0:05:49]} 15. Bh3 {[%emt 0:00:39]} Bxh3 {[%emt 0:24:23]} 16. Rxh3 {[%emt 0:01:08]} Rfe8 {[%emt 0:08:15]} 17. Nf3 {[%emt 0:01:11]} Nf5 {[%emt 0:00:32]} 18. Nd2 {[%emt 0:02:08]} Qb6 {[%emt 0:10:09]} 19. Qd3 {[%emt 0:07:28]} Nfe7 {[%emt 0:07:28]} 20. Kb1 {[%emt 0:01:56]} Rac8 {[%emt 0:01:19]} 21. Rhh1 {[%emt 0:01:25]} Red8 {[%emt 0:02:34]} 22. h5 {[%emt 0:03:07]} a5 {[%emt 0:02:37]} 23. a3 {[%emt 0:03:26]} a4 {[%emt 0:00:46]} 24. c3 {[%emt 0:01:44]} Qc5 {[%emt 0:01:16] [#]} (24... e4 $11 25. Qc2 Qa7) 25. g6 {[%emt 0:01:40]} ({White should try} 25. h6 $1 $16 {[%cal Rh6g7][%mdl 512] Threatens to win with hxg7.} e4 (25... g6 26. e4) 26. Qc2) 25... fxg6 {[%emt 0:01:06]} 26. hxg6 {[%emt 0:00:56]} h6 {[%emt 0:00:14]} (26... Nxg6 27. Qf5 Nf8 28. Nf3 $16 (28. Bxe5 Qe7 $14)) (26... hxg6 27. Qe2 $16) 27. Rh5 {[%emt 0:00:33]} Rf8 $1 {[%emt 0:07:13]} 28. f4 {[%emt 0:08:55]} Qd6 $2 {[%emt 0:03:38]} (28... Qb6 $11 {and Black stays safe.}) 29. f5 $18 {[%emt 0:02:01]} Qd7 {[%emt 0:00:28]} (29... Qc7 {might work better.} 30. Rf1 b5 (30... e4 $2 31. Nxe4 Ne5 32. Qd1 $18)) 30. e4 $18 {[%emt 0:02:43]} Rcd8 {[%emt 0:00:03]} 31. Nc4 {[%emt 0:01:54]} Qc7 {[%emt 0:00:39]} 32. Ne3 {[%emt 0:00:52]} dxe4 {[%emt 0:01:17]} 33. Qc4+ {[%emt 0:08:03]} (33. Qxe4 Rxd1+ 34. Nxd1 Qd7 $14) 33... Kh8 {[%emt 0:00:04]} 34. Rdh1 $1 {[%emt 0:00:02]} (34. Qxa4 $6 Rxd1+ 35. Qxd1 Qb6 $16) (34. Qxe4 Rxd1+ 35. Nxd1 Qd6 $14) 34... Ng8 {[%emt 0:01:51]} 35. f6 {[%emt 0:08:40]} (35. Qxa4 Qd6 36. Bf2 (36. Qxe4 Nf6 $19) 36... Nce7 $14) (35. Qxe4 $6 Nf6 $16) 35... Qd7 {[%emt 0:02:10]} (35... Nxf6 $2 36. Rxh6+ gxh6 37. Rxh6+ $18 (37. Qxa4 $2 Qd7 $19) (37. Qxa4 $2 Qd7 $19)) 36. Rd1 {[%emt 0:05:56]} (36. Qxe4 $2 {too greedy.} Nxf6 $19) ({And not} 36. Bxe5 Nxe5 37. fxg7+ (37. Rxe5 Nxf6 38. Ka2 Qd3 $17) 37... Qxg7 38. Qxe4 Nf3 $11 (38... Nxg6 39. Nf5 $16)) 36... Qxd1+ {[%emt 0:00:58]} 37. Nxd1 {[%emt 0:00:01]} Rxd1+ {[%emt 0:00:08]} 38. Kc2 {[%emt 0:00:34]} Nxf6 {[%emt 0:00:51]} 39. Rxh6+ {[%emt 0:01:05]} gxh6 {[%emt 0:00:01]} 40. Kxd1 {[%emt 0:00:06]} Kg7 {[%emt 0:00:42]} 41. Qxa4 {[%emt 0:30:41]} Kxg6 {[%emt 0:32:27]} 42. Qb3 {[%emt 0:00:00]} Rd8+ {[%emt 0:00:00] [#]} 43. Ke1 $2 {[%emt 0:00:00]} (43. Kc1 $1 $18) 43... Rd3 $11 {[%emt 0:00:00]} 44. Qxb7 {[%emt 0:00:00]} Rxg3 {[%emt 0:00:00]} 45. Qxc6 {[%emt 0:00:00]} h5 {[%emt 0:00:00]} 46. Qe6 {[%emt 0:00:00]} h4 {[%emt 0:00:00]} 47. Kf1 $2 {[%emt 0:00:00][%mdl 8192] [#]} (47. b4 $11) 47... h3 $2 {[%emt 0:00:00]} ({Black should play} 47... Rf3+ $1 $19 48. Ke1 Rf5) 48. Qxe5 $11 {[%emt 0:00:00]} Rg2 {[%emt 0:00:00]} 49. Qf4 {[%emt 0:00:00]} Ng4 {[%emt 0:00:00]} 50. Qxe4+ {[%emt 0:00:00]} Kg5 {[%emt 0:00:00]} 51. Qxg2 {[%emt 0:04:13]} hxg2+ {[%emt 0:00:00]} 52. Kxg2 {[%emt 0:00:03]} Kf4 {[%emt 0:00:00]} 53. Kf1 {[%emt 0:01:15]} Ke3 {[%emt 0:00:00]} 54. a4 {[%emt 0:00:35]} Kd3 {[%emt 0:00:00]} 55. a5 {[%emt 0:00:37]} Ne3+ {[%emt 0:00:37]} 56. Ke1 {[%emt 0:00:25]} Nc4 {[%emt 0:04:02]} 57. a6 {[%emt 0:00:16]} Nb6 {[%emt 0:00:58]} 58. Kf2 {[%emt 0:00:35]} Kc4 {[%emt 0:00:13]} 59. Ke3 {[%emt 0:00:03]} Kb5 {[%emt 0:00:14]} 60. a7 {[%emt 0:00:11]} Ka6 {[%emt 0:00:02]} 61. Kd4 {[%emt 0:00:23]} Kxa7 {[%emt 0:00:12]} 62. b4 {[%emt 0:00:08]} Kb7 {[%emt 0:00:15]} 63. c4 {[%emt 0:00:18]} Nxc4 {[%emt 0:00:24]} 64. Kxc4 {[%emt 0:00:03]} Kc6 {[%emt 0:00:13]} 65. b5+ {[%emt 0:00:04]} Kb6 {[%emt 0:00:05]} 66. Kb4 {[%emt 0:00:02]} Kb7 {[%emt 0:00:16]} 67. Kc5 {[%emt 0:00:03]} Kc7 {[%emt 0:00:11]} 68. b6+ {[%emt 0:00:03]} Kb7 {[%emt 0:00:09]} 69. Kb5 {[%emt 0:00:03]} Kb8 {[%emt 0:00:11]} 70. Kc6 {[%emt 0:00:09]} Kc8 {[%emt 0:00:02]} 71. b7+ {[%emt 0:00:08]} Kb8 {[%emt 0:00:08]} 72. Kb6 {[%emt 0:00:02]} 1/2-1/2